fUSD/lending_fUSD_20240317
["ID","MTS","AMOUNT","RATE_DAILY","PERIOD"]
[319336457,1710670247619,-8968.73258905,0.00019,2]
[319336458,1710670247637,-332.65577612,0.00018998,2]
[319336459,1710670247647,-38430.15672388,0.00019,2]
[319336460,1710670247658,-272845.22556667,0.00019,2]
[319336461,1710670247669,-29663.87051452,0.00019,2]
[319336462,1710670276771,677.14126023,0.00010643,2]
[319336463,1710671129618,500.0,0.0002,120]
[319336464,1710671163662,163.39,0.00011558,2]
[319336465,1710671317845,152.0,0.00024,120]
[319336490,1710671431840,-552.95363072,0.00012399,2]
[319336491,1710671431850,-2735.7610469,0.000124,2]
[319336494,1710671431860,-160.46570001,0.00012591,2]
[319336496,1710671431870,-841.01,0.00012691,2]
[319336498,1710671431892,-160.46569989,0.00013042,2]
[319336499,1710671431902,-160.46569989,0.00013492,2]
[319336500,1710671431913,-181.68,0.00013699,2]
[319336501,1710671431923,-182.76,0.00013699,2]
[319336502,1710671431933,-160.46569989,0.00013943,2]
[319336503,1710671431944,-150.0,0.00014327,2]
[319336504,1710671431956,-11327.93828767,0.00014328,2]
[319336505,1710671431967,-1843.01,0.00014329,2]
[319336506,1710671431978,-2751.0,0.00014329,2]
[319336507,1710671431988,-200.0,0.00014346,2]
[319336508,1710671431998,-1500.0,0.00014349,4]
[319336509,1710671432008,-10683.27,0.0001436,2]
[319336510,1710671432018,-169.62,0.00014367,2]
[319336511,1710671432028,-150.0,0.0001437,2]
[319336512,1710671432038,-150.99,0.0001437,2]
[319336513,1710671432048,-150.99,0.0001437,2]
[319336514,1710671432058,-299.99,0.0001437,2]
[319336515,1710671432068,-150.99,0.0001437,2]
[319336516,1710671432084,-1013.81504178,0.00014373,2]
[319336517,1710671432098,-345.00864011,0.00014373,2]
[319336518,1710671432112,-671.28,0.00014373,2]
[319336519,1710671432125,-516.07631811,0.00014373,2]
[319336520,1710671432135,-226.04,0.00014384,2]
[319336521,1710671432146,-160.46569989,0.00014393,2]
[319336522,1710671432157,-1134.21,0.00014424,2]
[319336523,1710671432167,-4376.92,0.00014454,2]
[319336524,1710671432179,-800.0,0.0001446,2]
[319336525,1710671432190,-262.99,0.0001446,2]
[319336526,1710671432201,-5132.39,0.00014473,2]
[319336527,1710671432211,-250.0,0.00014491,2]
[319336528,1710671432222,-23900.0,0.00014518,2]
[319336529,1710671432232,-250.0,0.00014541,2]
[319336530,1710671432242,-197.57,0.00014555,2]
[319336531,1710671432252,-10000.0,0.00014572,2]
[319336532,1710671432262,-200.0,0.00014578,2]
[319336533,1710671432272,-3713.65,0.00014601,2]
[319336534,1710671432282,-173.25,0.00014616,2]
[319336535,1710671432293,-161.15,0.0001463,2]
[319336536,1710671432303,-500.0,0.0001463,2]
[319336537,1710671432312,-160.46569989,0.00014844,2]
[319336538,1710671432330,-200.0,0.00014861,2]
[319336539,1710671432339,-1000.0,0.00014897,2]
[319336540,1710671432348,-1000.0,0.00014938,2]
[319336541,1710671432358,-841.01,0.00014955,2]
[319336542,1710671432367,-1000.0,0.00014979,2]
[319336543,1710671432377,-321.5583602,0.00015,2]
[319336544,1710671432387,-173.51,0.00015004,2]
[319336545,1710671432397,-1000.0,0.0001502,2]
[319336546,1710671432406,-1000.0,0.00015061,2]
[319336547,1710671432416,-1000.0,0.00015102,2]
[319336548,1710671432425,-832.5266,0.00015138,2]
[319336549,1710671432434,-1258.3531,0.00015138,2]
[319336550,1710671432444,-1000.0,0.00015142,2]
[319336551,1710671432453,-1000.0,0.00015183,2]
[319336552,1710671432462,-1000.0,0.00015224,2]
[319336553,1710671432471,-1000.0,0.00015265,2]
[319336554,1710671432481,-10914.731,0.00015269,2]
[319336555,1710671432490,-160.46569989,0.00015294,2]
[319336556,1710671432499,-171.95747327,0.00015299,2]
[319336557,1710671432508,-1000.0,0.00015306,2]
[319336558,1710671432517,-6844.24,0.00015335,2]
[319336559,1710671432527,-531.81,0.00015335,2]
[319336560,1710671432536,-2371.07,0.00015335,2]
[319336561,1710671432545,-932.78,0.00015342,2]
[319336562,1710671432554,-1000.0,0.00015347,2]
[319336563,1710671432563,-2646.0674,0.0001537,2]
[319336564,1710671432572,-1000.0,0.00015387,2]
[319336565,1710671432584,-501.93136844,0.00015399,2]
[319336566,1710671432597,-1000.0,0.00015428,2]
[319336567,1710671432606,-1000.0,0.00015469,2]
[319336568,1710671432616,-171.95747313,0.00015489,2]
[319336569,1710671432626,-155.0,0.000155,2]
[319336570,1710671432636,-1000.0,0.0001551,2]
[319336571,1710671432645,-173.25,0.0001553,2]
[319336572,1710671432655,-1000.0,0.00015551,2]
[319336573,1710671432665,-1000.0,0.00015592,2]
[319336574,1710671432675,-1000.0,0.00015633,2]
[319336575,1710671432685,-1000.0,0.00015673,2]
[319336576,1710671432695,-171.95747313,0.00015678,2]
[319336577,1710671432705,-278.17,0.00015709,2]
[319336578,1710671432714,-160.46569989,0.00015745,2]
[319336579,1710671432724,-210.0,0.00015759,2]
[319336580,1710671432734,-347.51,0.00015839,2]
[319336581,1710671432744,-171.95747313,0.00015868,2]
[319336582,1710671432753,-643.24708674,0.00016,2]
[319336583,1710671432763,-232.187454,0.00016014,2]
[319336584,1710671432773,-169.87,0.00016015,2]
[319336585,1710671432784,-167.0,0.00016028,2]
[319336586,1710671432794,-171.95747313,0.00016057,2]
[319336587,1710671432803,-543.11960588,0.00016148,2]
[319336588,1710671432814,-301.11,0.00016198,2]
[319336589,1710671432824,-171.95747313,0.00016247,2]
[319336590,1710671432838,-301.11,0.00016257,2]
[319336591,1710671432847,-800.0,0.00016268,2]
[319336592,1710671432857,-301.11,0.00016317,2]
[319336593,1710671432874,-1930.67767394,0.00016317,2]
[319336594,1710671432884,-200.0,0.00016322,2]
[319336595,1710671432894,-197.57,0.00016375,2]
[319336596,1710671432904,-301.11,0.00016377,2]
[319336597,1710671432913,-2129.0,0.000164,2]
[319336598,1710671432924,-2000.0,0.000164,2]
[319336599,1710671432934,-1136.0,0.00016417,2]
[319336600,1710671432945,-357.0,0.00016417,2]
[319336601,1710671432955,-202.525,0.00016417,2]
[319336602,1710671432966,-800.0,0.00016417,2]
[319336603,1710671432976,-2950.0,0.00016417,2]
[319336604,1710671432986,-266.876,0.00016417,2]
[319336605,1710671432996,-1502.187,0.00016417,2]
[319336606,1710671433007,-152.813,0.00016417,2]
[319336607,1710671433017,-201.816,0.00016417,2]
[319336608,1710671433027,-2418.0,0.00016417,2]
[319336609,1710671433037,-1622.0,0.00016417,2]
[319336610,1710671433047,-213.0,0.00016417,2]
[319336611,1710671433057,-42865.0,0.00016417,2]
[319336612,1710671433066,-166.177,0.00016417,2]
[319336613,1710671433078,-4760.0,0.00016417,2]
[319336614,1710671433088,-5666.0,0.00016417,2]
[319336615,1710671433097,-2545.678,0.00016417,2]
[319336616,1710671433106,-536.0,0.00016417,2]
[319336617,1710671433116,-1225.911,0.00016417,2]
[319336618,1710671433125,-1044.0,0.00016417,2]
[319336619,1710671433135,-603.0,0.00016417,2]
[319336624,1710671433429,-354.158,0.00016417,2]
[319336625,1710671433440,-171.95747313,0.00016436,2]
[319336626,1710671433450,-301.11,0.00016436,2]
[319336627,1710671433459,-500.0,0.00016438,2]
[319336628,1710671433469,-200.0,0.00016438,2]
[319336629,1710671433478,-4000.0,0.00016438,2]
[319336630,1710671433488,-500.0,0.00016438,2]
[319336631,1710671433497,-173.25,0.00016443,2]
[319336632,1710671433506,-301.11,0.00016496,2]
[319336633,1710671433516,-1216.46329409,0.000165,2]
[319336634,1710671433526,-301.11,0.00016556,2]
[319336635,1710671433536,-500.0,0.000166,2]
[319336636,1710671433545,-1930.6776739,0.00016604,2]
[319336637,1710671433556,-301.11,0.00016615,2]
[319336638,1710671433565,-171.95747313,0.00016626,2]
[319336639,1710671433577,-301.11,0.00016675,2]
[319336640,1710671433586,-167.0,0.00016689,2]
[319336641,1710671433603,-170.41,0.00016712,2]
[319336642,1710671433615,-200.0,0.00016718,2]
[319336643,1710671433625,-301.11,0.00016735,2]
[319336644,1710671433635,-301.11,0.00016794,2]
[319336645,1710671433645,-171.95747313,0.00016815,2]
[319336646,1710671433654,-301.11,0.00016854,2]
[319336647,1710671433665,-1930.6776739,0.00016891,2]
[319336648,1710671433676,-301.11,0.00016914,2]
[319336649,1710671433686,-301.11,0.00016973,2]
[319336650,1710671433696,-500.0,0.00016986,2]
[319336651,1710671433706,-171.95747313,0.00017005,2]
[319336652,1710671433716,-301.11,0.00017033,2]
[319336653,1710671433726,-161.15,0.00017068,2]
[319336654,1710671433736,-301.11,0.00017093,2]
[319336655,1710671433746,-209.74266425,0.00017098,2]
[319336656,1710671433757,-169.87,0.00017147,2]
[319336657,1710671433767,-301.11,0.00017152,2]
[319336658,1710671433777,-1930.6776739,0.00017178,2]
[319336659,1710671433788,-4376.92,0.00017194,2]
[319336660,1710671433799,-171.95747313,0.00017194,2]
[319336661,1710671433810,-1000.12061678,0.00017202,2]
[319336662,1710671433820,-301.11,0.00017212,2]
[319336663,1710671433832,-841.01,0.00017219,2]
[319336664,1710671433846,-750.53240159,0.00017222,2]
[319336665,1710671433856,-150.21260499,0.00017233,2]
[319336666,1710671433866,-307.21363863,0.00017256,2]
[319336667,1710671433877,-1000.12061678,0.00017269,2]
[319336668,1710671433887,-301.11,0.00017272,2]
[319336669,1710671433897,-165.22277976,0.00017287,2]
[319336670,1710671433907,-161.60434798,0.00017317,2]
[319336671,1710671433916,-150.21260499,0.00017325,2]
[319336672,1710671433927,-151.37997203,0.00017331,2]
[319336673,1710671433937,-301.11,0.00017331,2]
[319336674,1710671433948,-293.0,0.00017335,2]
[319336675,1710671433957,-167.0,0.0001735,2]
[319336676,1710671433968,-173.25,0.00017356,2]
[319336677,1710671433978,-150.21260499,0.00017359,2]
[319336678,1710671433988,-171.95747313,0.00017384,2]
[319336679,1710671433998,-1000.12061678,0.00017436,2]
[319336680,1710671434008,-175.24221204,0.00017446,2]
[319336681,1710671434019,-1930.6776739,0.00017465,2]
[319336682,1710671434029,-2500.0,0.000175,2]
[319336683,1710671434039,-202.43468862,0.0001752,2]
[319336684,1710671434049,-500.0,0.00017534,2]
[319336685,1710671434060,-150.21260499,0.00017545,2]
[319336686,1710671434070,-171.95747313,0.00017573,2]
[319336687,1710671434083,-165.22277976,0.00017587,2]
[319336688,1710671434092,-154.5275948,0.00017606,2]
[319336689,1710671434103,-155.08176691,0.00017613,2]
[319336690,1710671434113,-202.43468862,0.00017665,2]
[319336691,1710671434123,-225.80409065,0.00017696,2]
[319336692,1710671434133,-1000.12061678,0.00017696,2]
[319336693,1710671434146,-165.22277976,0.00017719,2]
[319336694,1710671434156,-1930.6776739,0.00017752,2]
[319336695,1710671434165,-171.95747313,0.00017763,2]
[319336696,1710671434175,-202.43468862,0.00017764,2]
[319336697,1710671434185,-165.22277976,0.00017795,2]
[319336698,1710671434195,-163.68,0.00017808,10]
[319336699,1710671434205,-165.56873329,0.00017812,2]
[319336700,1710671434214,-347.51,0.00017819,2]
[319336701,1710671434224,-307.21363863,0.00017843,2]
[319336702,1710671434235,-165.22277976,0.00017865,2]
[319336703,1710671434244,-1000.12061678,0.00017888,2]
[319336704,1710671434254,-165.22277976,0.0001789,2]
[319336705,1710671434264,-151.16603037,0.0001793,2]
[319336706,1710671434274,-171.95747313,0.00017952,2]
[319336707,1710671434283,-500.0,0.0001797,2]
[319336708,1710671434293,-154.5275948,0.00017988,2]
[319336709,1710671434302,-165.22277976,0.00017992,2]
[319336710,1710671434312,-166.66666667,0.00017993,2]
[319336711,1710671434322,-356.4,0.00018,2]
[319336712,1710671434334,-260.49,0.00018,2]
[319336713,1710671434344,-250.0,0.00018,2]
[319336714,1710671434354,-150.0,0.00018,2]
[319336715,1710671434364,-150.0,0.00018,2]
[319336716,1710671434374,-150.0,0.00018,2]
[319336717,1710671434384,-1500.0,0.00018,2]
[319336718,1710671434394,-450.0,0.00018,4]
[319336719,1710671434405,-155.0,0.00018011,2]
[319336720,1710671434415,-167.0,0.00018012,2]
[319336721,1710671434425,-1930.6776739,0.00018039,2]
[319336722,1710671434435,-310.77262472,0.00018048,2]
[319336723,1710671434444,-750.53240159,0.00018063,2]
[319336724,1710671434455,-154.5275948,0.00018064,2]
[319336725,1710671434464,-800.0,0.00018076,2]
[319336726,1710671434474,-500.0,0.00018082,2]
[319336727,1710671434484,-156.51853803,0.000181,2]
[319336728,1710671434494,-260.49,0.00018137,2]
[319336729,1710671434503,-180.0,0.00018137,2]
[319336730,1710671434513,-171.95747313,0.00018142,2]
[319336731,1710671434522,-180.0,0.00018164,2]
[319336732,1710671434533,-165.22277976,0.00018183,2]
[319336733,1710671434542,-444.73,0.00018192,2]
[319336734,1710671434552,-300.0,0.00018192,2]
[319336735,1710671434562,-346.47,0.00018192,2]
[319336736,1710671434571,-1031.6,0.00018192,2]
[319336737,1710671434583,-414.91,0.00018192,2]
[319336738,1710671434592,-310.53,0.00018192,2]
[319336739,1710671434601,-414.91,0.00018192,2]
[319336740,1710671434611,-405.74,0.00018192,2]
[319336741,1710671434620,-414.91,0.00018192,2]
[319336742,1710671434630,-414.91,0.00018192,2]
[319336743,1710671434640,-197.57,0.00018194,2]
[319336744,1710671434649,-750.53240159,0.00018238,2]
[319336745,1710671434659,-2438.0,0.00018248,2]
[319336746,1710671434669,-156.01973643,0.00018249,2]
[319336747,1710671434678,-750.53240159,0.00018259,2]
[319336748,1710671434691,-150.21260499,0.00018261,2]
[319336749,1710671434701,-260.49,0.00018274,2]
[319336750,1710671434711,-150.21260499,0.00018275,2]
[319336751,1710671434720,-169.87,0.0001828,2]
[319336752,1710671434731,-1930.6776739,0.00018326,2]
[319336753,1710671434740,-171.95747313,0.00018331,2]
[319336754,1710671434749,-202.43468862,0.00018333,2]
[319336755,1710671434759,-154.11102108,0.00018365,2]
[319336756,1710671434769,-1000.12061678,0.00018387,2]
[319336757,1710671434778,-260.49,0.00018411,2]
[319336758,1710671434788,-307.21363863,0.00018436,2]
[319336759,1710671434797,-151.16603037,0.00018452,2]
[319336760,1710671434807,-166.66008377,0.00018462,2]
[319336761,1710671434817,-202.43468862,0.00018474,2]
[319336762,1710671434828,-307.21363863,0.00018495,2]
[319336763,1710671434839,-1500.0,0.000185,2]
[319336764,1710671434849,-1000.12061678,0.00018505,2]
[319336765,1710671434858,-386.17580413,0.00018518,2]
[319336766,1710671434878,-113.82419587,0.00018518,2]
[319336767,1710671434887,-171.95747313,0.00018521,2]
[319336768,1710671434897,-520.38,0.00018548,2]
[319336769,1710671434908,-150.0,0.00018548,2]
[319336770,1710671434921,-750.53240159,0.00018562,2]
[319336771,1710671434931,-200.0,0.00018576,2]
[319336772,1710671434942,-487.28837316,0.00018613,2]
[319336773,1710671434954,-713.45,0.00018613,2]
[319336774,1710671434966,-729.93930074,0.00018613,2]
[319336775,1710671434975,-500.0,0.0001863,2]
[319336776,1710671434985,-150.21260499,0.00018643,2]
[319336777,1710671434995,-154.11102108,0.00018655,2]
[319336778,1710671435004,-307.21363863,0.00018657,2]
[319336779,1710671435014,-155.08176691,0.00018659,2]
[319336780,1710671435024,-167.0,0.00018673,2]
[319336781,1710671435034,-307.21363863,0.00018692,2]
[319336782,1710671435045,-169.36639489,0.00018702,2]
[319336783,1710671435054,-171.95747313,0.0001871,2]
[319336784,1710671435064,-202.43468862,0.00018765,2]
[319336785,1710671435075,-155.08176691,0.00018783,2]
[319336786,1710671435085,-3000.0,0.0001881,2]
[319336787,1710671435096,-154.5275948,0.00018813,2]
[319336788,1710671435105,-153.30432521,0.00018838,2]
[319336789,1710671435115,-150.80584846,0.00018838,2]
[319336790,1710671435124,-183.05364349,0.00018898,2]
[319336791,1710671435135,-1920.77636558,0.00018898,2]
[319336792,1710671435146,-500.0,0.00018899,2]
[319336793,1710671435156,-4684.34477441,0.000189,2]
[319336794,1710671435166,-5000.0,0.000189,2]
[319336795,1710671435177,-1123.36,0.000189,2]
[319336796,1710671435188,-211.0,0.000189,2]
[319336797,1710671435199,-600.0,0.000189,2]
[319336798,1710671435209,-171.95747313,0.000189,2]
[319336799,1710671435219,-351.98241744,0.000189,2]
[319336800,1710671435228,-1930.6776739,0.000189,2]
[319336801,1710671435238,-296.71847077,0.000189,2]
[319336802,1710671435248,-436.447206,0.000189,2]
[319336803,1710671435258,-154.5275948,0.00018908,2]
[319336804,1710671435267,-162.65349022,0.0001891,2]
[319336805,1710671435277,-750.53240159,0.00018913,2]
[319336806,1710671435286,-750.53240159,0.00018926,2]
[319336807,1710671435296,-170.96585668,0.00018988,2]
[319336808,1710671435306,-154.5275948,0.00018989,2]
[319336809,1710671435315,-1028.432316,0.0001899,2]
[319336810,1710671435327,-170.96585668,0.0001899,2]
[319336811,1710671435337,-151.16603037,0.00018993,2]
[319336812,1710671435346,-10426.49285854,0.00018996,2]
[319336813,1710671435356,-155.0,0.00018996,2]
[319336814,1710671435366,-7096.30838235,0.00018997,2]
[319336815,1710671435379,-12265.19155475,0.00018997,2]
[319336816,1710671435389,-504.32768554,0.00018997,2]
[319336817,1710671435398,-504.99699611,0.00018997,2]
[319336818,1710671435408,-500.0,0.00018997,2]
[319336819,1710671435417,-506.9942905,0.00018997,2]
[319336820,1710671435427,-500.0,0.00018997,2]
[319336821,1710671435436,-219.33,0.00018997,2]
[319336822,1710671435446,-500.0,0.00018997,2]
[319336823,1710671435456,-506.14419674,0.00018997,2]
[319336824,1710671435466,-510.24192072,0.00018997,2]
[319336825,1710671435476,-500.0,0.00018997,2]
[319336826,1710671435486,-509.36109824,0.00018997,2]
[319336827,1710671435497,-595.7577417,0.00018997,2]
[319336828,1710671435507,-511.15562224,0.00018997,2]
[319336829,1710671435516,-505.35765954,0.00018997,2]
[319336830,1710671435527,-500.0,0.00018997,2]
[319336831,1710671435537,-500.0,0.00018997,2]
[319336832,1710671435546,-500.0,0.00018997,2]
[319336833,1710671435556,-509.0536914,0.00018997,2]
[319336834,1710671435565,-507.3722247,0.00018997,2]
[319336835,1710671435577,-500.0,0.00018997,2]
[319336836,1710671435586,-500.0,0.00018997,2]
[319336837,1710671435595,-500.0,0.00018997,2]
[319336838,1710671435604,-500.0,0.00018997,2]
[319336839,1710671435614,-601.88,0.00018997,2]
[319336840,1710671435623,-500.0,0.00018997,2]
[319336841,1710671435632,-500.0,0.00018997,2]
[319336842,1710671435642,-500.0,0.00018997,2]
[319336843,1710671435652,-500.0,0.00018997,2]
[319336844,1710671435662,-500.0,0.00018997,2]
[319336845,1710671435671,-500.0,0.00018997,2]
[319336846,1710671435680,-500.0,0.00018997,2]
[319336847,1710671435690,-500.0,0.00018997,2]
[319336848,1710671435700,-500.0,0.00018997,2]
[319336849,1710671435710,-500.0,0.00018997,2]
[319336850,1710671435719,-587.28,0.00018997,2]
[319336851,1710671435729,-587.28,0.00018997,2]
[319336852,1710671435738,-587.28,0.00018997,2]
[319336853,1710671435747,-587.28,0.00018997,2]
[319336854,1710671435757,-587.28,0.00018997,2]
[319336855,1710671435767,-500.0,0.00018997,2]
[319336856,1710671435776,-500.0,0.00018997,2]
[319336857,1710671435785,-500.0,0.00018997,2]
[319336858,1710671435795,-500.0,0.00018997,2]
[319336859,1710671435804,-500.0,0.00018997,2]
[319336860,1710671435814,-500.0,0.00018997,2]
[319336861,1710671435823,-500.0,0.00018997,2]
[319336862,1710671435834,-500.0,0.00018997,2]
[319336863,1710671435847,-500.0,0.00018997,2]
[319336864,1710671435857,-500.0,0.00018997,2]
[319336865,1710671435866,-500.0,0.00018997,2]
[319336866,1710671435876,-500.0,0.00018997,2]
[319336867,1710671435887,-500.0,0.00018997,2]
[319336868,1710671435896,-240.68184938,0.00018997,2]
[319336869,1710671435907,-500.0,0.00018997,2]
[319336870,1710671435917,-500.0,0.00018997,2]
[319336871,1710671435927,-500.0,0.00018997,2]
[319336872,1710671435938,-500.0,0.00018997,2]
[319336873,1710671435948,-500.0,0.00018997,2]
[319336874,1710671435958,-500.0,0.00018997,2]
[319336875,1710671435968,-482.31794724,0.00018997,2]
[319336876,1710671435978,-500.0,0.00018997,2]
[319336877,1710671435988,-483.27067862,0.00018997,2]
[319336878,1710671435997,-500.0,0.00018997,2]
[319336879,1710671436007,-500.0,0.00018997,2]
[319336880,1710671436017,-500.0,0.00018997,2]
[319336881,1710671436027,-500.0,0.00018997,2]
[319336882,1710671436037,-500.0,0.00018997,2]
[319336883,1710671436047,-500.0,0.00018997,2]
[319336884,1710671436057,-500.0,0.00018997,2]
[319336885,1710671436067,-500.0,0.00018997,2]
[319336886,1710671436077,-500.0,0.00018997,2]
[319336887,1710671436086,-500.0,0.00018997,2]
[319336888,1710671436096,-500.0,0.00018997,2]
[319336889,1710671436105,-500.0,0.00018997,2]
[319336890,1710671436114,-500.0,0.00018997,2]
[319336891,1710671436124,-500.0,0.00018997,2]
[319336892,1710671436133,-500.0,0.00018997,2]
[319336893,1710671436142,-585.32801498,0.00018997,2]
[319336894,1710671436152,-500.0,0.00018997,2]
[319336895,1710671436162,-500.0,0.00018997,2]
[319336896,1710671436171,-500.0,0.00018997,2]
[319336897,1710671436181,-500.0,0.00018997,2]
[319336898,1710671436190,-500.0,0.00018997,2]
[319336899,1710671436200,-500.0,0.00018997,2]
[319336900,1710671436209,-500.0,0.00018997,2]
[319336901,1710671436218,-500.0,0.00018997,2]
[319336902,1710671436228,-500.0,0.00018997,2]
[319336903,1710671436237,-500.0,0.00018997,2]
[319336904,1710671436247,-500.0,0.00018997,2]
[319336905,1710671436256,-500.0,0.00018997,2]
[319336906,1710671436266,-500.0,0.00018997,2]
[319336907,1710671436276,-500.0,0.00018997,2]
[319336908,1710671436285,-500.0,0.00018997,2]
[319336909,1710671436295,-500.0,0.00018997,2]
[319336910,1710671436304,-500.0,0.00018997,2]
[319336911,1710671436313,-500.0,0.00018997,2]
[319336912,1710671436323,-500.0,0.00018997,2]
[319336913,1710671436335,-500.0,0.00018997,2]
[319336914,1710671436344,-500.0,0.00018997,2]
[319336915,1710671436353,-500.0,0.00018997,2]
[319336916,1710671436363,-500.0,0.00018997,2]
[319336917,1710671436373,-500.0,0.00018997,2]
[319336918,1710671436383,-500.0,0.00018997,2]
[319336919,1710671436392,-500.0,0.00018997,2]
[319336920,1710671436401,-500.0,0.00018997,2]
[319336921,1710671436411,-568.14221274,0.00018997,2]
[319336922,1710671436421,-500.0,0.00018997,2]
[319336923,1710671436430,-500.0,0.00018997,2]
[319336924,1710671436441,-500.0,0.00018997,2]
[319336925,1710671436450,-500.0,0.00018997,2]
[319336926,1710671436461,-500.0,0.00018997,2]
[319336927,1710671436471,-500.0,0.00018997,2]
[319336928,1710671436481,-500.0,0.00018997,2]
[319336929,1710671436491,-500.0,0.00018997,2]
[319336930,1710671436502,-516.61,0.00018997,2]
[319336931,1710671436512,-500.0,0.00018997,2]
[319336932,1710671436522,-500.0,0.00018997,2]
[319336933,1710671436532,-500.0,0.00018997,2]
[319336934,1710671436542,-500.0,0.00018997,2]
[319336935,1710671436552,-500.0,0.00018997,2]
[319336936,1710671436562,-500.0,0.00018997,2]
[319336937,1710671436572,-500.0,0.00018997,2]
[319336938,1710671436586,-500.0,0.00018997,2]
[319336939,1710671436596,-500.0,0.00018997,2]
[319336940,1710671436606,-500.0,0.00018997,2]
[319336941,1710671436616,-500.0,0.00018997,2]
[319336942,1710671436626,-500.0,0.00018997,2]
[319336943,1710671436636,-500.0,0.00018997,2]
[319336944,1710671436646,-403.12,0.00018997,2]
[319336945,1710671436656,-500.0,0.00018997,2]
[319336946,1710671436665,-500.0,0.00018997,2]
[319336947,1710671436675,-500.0,0.00018997,2]
[319336948,1710671436685,-501.70184017,0.00018997,2]
[319336949,1710671436695,-500.0,0.00018997,2]
[319336950,1710671436704,-500.0,0.00018997,2]
[319336951,1710671436714,-500.0,0.00018997,2]
[319336952,1710671436723,-500.0,0.00018997,2]
[319336953,1710671436733,-500.0,0.00018997,2]
[319336954,1710671436743,-500.0,0.00018997,2]
[319336955,1710671436752,-509.81955627,0.00018997,2]
[319336956,1710671436762,-500.0,0.00018997,2]
[319336957,1710671436771,-310.45924815,0.00018997,2]
[319336958,1710671436780,-500.0,0.00018997,2]
[319336959,1710671436789,-500.0,0.00018997,2]
[319336960,1710671436798,-500.0,0.00018997,2]
[319336961,1710671436807,-500.0,0.00018997,2]
[319336962,1710671436816,-501.56696442,0.00018997,2]
[319336963,1710671436826,-501.52048471,0.00018997,2]
[319336964,1710671436837,-500.0,0.00018997,2]
[319336965,1710671436846,-516.52,0.00018997,2]
[319336966,1710671436855,-500.0,0.00018997,2]
[319336967,1710671436866,-500.0,0.00018997,2]
[319336968,1710671436876,-281.48075047,0.00018997,2]
[319336969,1710671436885,-500.0,0.00018997,2]
[319336970,1710671436895,-500.0,0.00018997,2]
[319336971,1710671436905,-500.0,0.00018997,2]
[319336972,1710671436914,-500.0,0.00018997,2]
[319336973,1710671436923,-500.0,0.00018997,2]
[319336974,1710671436933,-500.0,0.00018997,2]
[319336975,1710671436943,-500.0,0.00018997,2]
[319336976,1710671436953,-329.14409923,0.00018997,2]
[319336977,1710671436962,-533.52,0.00018997,2]
[319336978,1710671436971,-317.20610779,0.00018997,2]
[319336979,1710671436980,-500.0,0.00018997,2]
[319336980,1710671436990,-500.0,0.00018997,2]
[319336981,1710671436999,-500.0,0.00018997,2]
[319336982,1710671437008,-500.0,0.00018997,2]
[319336983,1710671437018,-500.0,0.00018997,2]
[319336984,1710671437027,-500.0,0.00018997,2]
[319336985,1710671437037,-500.0,0.00018997,2]
[319336986,1710671437046,-500.0,0.00018997,2]
[319336987,1710671437056,-500.0,0.00018997,2]
[319336988,1710671437066,-500.0,0.00018997,2]